bitfinex/quotes_ETHUSD_20241231
["timestamp","ask_amount","ask_price","bid_price","bid_amount"]
[1735662503695,3.39506569,3412.8,3411.7,1.06365756]
[1735662504195,0.46485569,3412.8,3411.7,1.06365756]
[1735662504496,2.93042,3412.5,3411.7,0.6458]
[1735662504695,2.82125294,3412.7,3411.7,0.6458]
[1735662504871,2.93026,3412.7,3411.7,0.6458]
[1735662505065,2.82125294,3413.0,3411.7,0.6458]
[1735662505267,2.93008,3412.9,3411.7,0.6458]
[1735662505472,2.93008,3412.9,3411.9,0.6458]
[1735662505671,2.93018,3412.8,3411.9,0.6458]
[1735662506403,5.75151294,3412.7,3411.9,0.6458]
[1735662507559,2.82125294,3412.7,3411.9,0.6458]
[1735662507801,2.93006,3412.9,3411.9,0.6458]
[1735662508008,2.93006,3412.9,3411.9,1.003478]
[1735662508519,5.75149294,3412.7,3411.9,1.003478]
[1735662508863,2.93036,3412.6,3411.9,0.6458]
[1735662509307,2.93044,3412.5,3411.9,0.6458]
[1735662518214,2.93069,3412.2,3411.9,0.6458]
[1735662518414,2.93069,3412.2,3411.6,0.6458]
[1735662519722,2.82125294,3412.4,3411.6,0.6458]
[1735662520020,2.82125294,3411.8,3411.6,0.6458]
[1735662521219,2.93084,3412.0,3411.6,0.6458]
[1735662521720,2.82125294,3412.1,3411.6,0.6458]
[1735662522019,2.9307,3412.2,3411.6,0.6458]
[1735662522219,2.82125294,3412.4,3411.6,0.6458]
[1735662522387,3.18522823,3412.4,3411.6,0.6458]
[1735662522593,2.93068,3412.2,3411.6,0.6458]
[1735662532644,3.18522823,3412.4,3411.6,0.6458]
[1735662532857,6.11573823,3412.4,3411.6,0.6458]
[1735662533100,2.93059,3412.3,3411.6,0.6458]
[1735662533611,2.82125294,3412.7,3411.6,0.6458]
[1735662533754,2.9305,3412.4,3411.6,0.6458]
[1735662533961,2.93058,3412.3,3411.6,0.6458]
[1735662534162,2.93058,3412.3,3411.7,0.24938031]
[1735662534704,2.93058,3412.3,3411.6,0.6458]
[1735662535687,2.93058,3412.3,3411.7,0.24938379]
[1735662536189,2.93058,3412.3,3411.6,0.6458]
[1735662537196,2.93058,3412.3,3411.7,0.24939515]
[1735662537935,2.93066,3412.2,3411.6,0.6458]
[1735662538136,2.93082,3412.1,3411.6,0.6458]
[1735662539619,0.293058,3412.3,3411.6,0.6458]
[1735662539939,2.93058,3412.3,3411.6,0.6458]
[1735662540090,2.93068,3412.2,3411.6,0.6458]
[1735662540925,2.93031,3412.6,3411.6,0.6458]
[1735662541324,2.93061,3412.3,3411.6,0.6458]
[1735662542392,3.84055479,3412.8,3411.8,0.6458]
[1735662542632,3.84055479,3412.8,3412.0,0.6458]
[1735662542633,3.04665479,3412.8,3412.0,0.6458]
[1735662543435,2.92999,3413.0,3412.0,0.6458]
[1735662543990,2.93007,3412.9,3412.0,0.6458]
[1735662546737,5.86790773,3413.2,3412.1,0.55]
[1735662546937,2.92992,3413.1,3412.2,0.6458]
[1735662547497,2.92992,3413.1,3412.2,1.058463]
[1735662548240,5.86790773,3413.2,3412.4,0.6458]
[1735662548241,3.04665479,3413.2,3412.4,0.6458]
[1735662548404,3.04665479,3413.2,3412.8,0.6458]
[1735662549225,5.86790773,3413.8,3412.8,0.6458]
[1735662549655,2.92946,3413.6,3412.8,0.6458]
[1735662549971,2.92958,3413.5,3412.8,0.6458]
[1735662550381,2.82125294,3413.2,3412.8,0.6458]
[1735662550729,2.92972,3413.3,3412.8,0.6458]
[1735662551162,2.92963,3413.4,3412.8,0.6458]
[1735662551481,5.75080294,3413.5,3412.8,0.6458]
[1735662553249,5.97578479,3414.0,3413.0,0.6458]
[1735662553448,5.97578479,3414.0,3413.1,0.6458]
[1735662553648,2.92921,3413.9,3413.1,0.6458]
[1735662553950,2.9292,3413.9,3413.1,0.6458]
[1735662554351,2.82125294,3413.9,3413.1,0.6458]
[1735662554534,2.92928,3413.8,3413.1,0.6458]
[1735662554878,2.92953,3413.6,3413.1,0.6458]
[1735662555379,2.92968,3413.4,3413.1,0.6458]
[1735662555592,2.82125294,3413.6,3413.1,0.6458]
[1735662555738,2.9298,3413.2,3413.1,0.6458]
[1735662556090,2.9298,3413.2,3412.3,1.1958]
[1735662556384,2.82125294,3413.3,3412.5,0.6458]
[1735662556775,2.82125294,3413.6,3412.5,0.6458]
[1735662556965,0.8097,3413.8,3412.8,0.55]
[1735662556966,2.92936,3413.8,3412.8,0.55]
[1735662557165,2.92936,3413.8,3412.9,0.6458]
[1735662557535,2.82125294,3413.9,3413.1,0.6458]
[1735662557741,5.75045294,3413.9,3413.1,0.6458]
[1735662558775,2.92939,3413.7,3413.1,0.6458]
[1735662559136,2.92947,3413.6,3413.1,0.6458]
[1735662559388,2.92964,3413.4,3413.1,0.6458]
[1735662559554,2.82125294,3413.6,3412.2,1.22169658]
[1735662559555,2.92978,3413.3,3412.9,0.6458]
[1735662559958,2.82125294,3413.3,3412.9,0.6458]
[1735662560371,2.93015,3412.8,3412.3,0.6458]
[1735662560572,2.82125294,3413.0,3412.3,0.6458]
[1735662561037,2.93006,3412.9,3412.3,0.6458]
[1735662561388,2.92991,3413.1,3412.3,0.6458]
[1735662561755,2.92991,3413.1,3412.3,1.06207944]
[1735662564195,2.92991,3413.1,3412.4,0.6458]
[1735662566922,5.75099294,3413.3,3412.4,0.6458]
[1735662567438,2.92982,3413.2,3412.4,0.6458]
[1735662569112,2.82125294,3413.0,3412.4,0.6458]
[1735662569415,2.82125294,3413.0,3411.7,3.0]
[1735662569416,2.9304,3412.5,3412.1,0.89470058]
[1735662569915,2.9304,3412.5,3412.1,0.6458]
[1735662570124,2.93058,3412.3,3412.1,0.6458]
[1735662570272,2.93043,3412.5,3412.1,0.6458]
[1735662570566,5.75155294,3412.7,3412.1,0.6458]
[1735662572217,2.93039,3412.6,3412.1,0.6458]
[1735662573115,0.54701569,3412.6,3412.1,0.6458]
[1735662573321,2.93046,3412.5,3412.1,0.6458]
[1735662574709,1.4024237,3413.1,3412.1,0.6458]
[1735662575022,2.93016,3412.8,3412.1,0.6458]
[1735662575193,2.82125294,3412.6,3412.1,0.6458]
[1735662575518,2.93015,3412.8,3412.1,0.6458]
[1735662577720,2.93001,3413.0,3412.1,0.6458]
[1735662577881,2.93006,3412.9,3412.1,0.6458]
[1735662578622,2.82125294,3413.2,3412.3,0.6458]
[1735662578922,5.75112294,3413.2,3412.5,0.6458]
[1735662579080,2.82125294,3413.2,3412.5,0.6458]
[1735662579285,2.92992,3413.1,3412.5,0.6458]
[1735662582628,2.92976,3413.3,3412.5,0.6458]
[1735662582868,2.92976,3413.3,3412.5,1.058445]
[1735662583128,2.92976,3413.3,3412.6,0.6458]
[1735662586090,2.92985,3413.2,3412.6,0.6458]
[1735662586288,2.92988,3413.2,3412.6,0.6458]
[1735662590769,2.92988,3413.1,3412.6,0.6458]
[1735662591416,2.82125294,3412.9,3412.6,0.6458]
[1735662592265,2.82125294,3412.9,3412.0,0.24912659]
[1735662592478,2.82125294,3412.6,3412.1,0.6458]
[1735662592660,2.93041,3412.5,3412.1,0.6458]
[1735662593245,2.82125294,3412.6,3412.1,0.6458]
[1735662593483,5.75156294,3412.6,3412.1,0.6458]
[1735662596201,2.93043,3412.5,3412.1,0.6458]
[1735662596353,2.93048,3412.4,3412.1,0.6458]
[1735662596754,2.93059,3412.3,3412.1,0.6458]
[1735662597364,3.58275294,3412.6,3411.8,0.6458]
[1735662597568,2.93056,3412.4,3411.8,0.6458]
[1735662598072,2.93066,3412.2,3411.8,0.6458]
[1735662598270,6.51310294,3412.6,3411.8,0.6458]
[1735662598271,3.58275294,3412.6,3411.8,0.6458]
[1735662598489,2.93065,3412.3,3411.8,0.6458]
[1735662598693,2.82125294,3412.3,3411.8,0.6458]
[1735662598895,2.93075,3412.1,3411.8,0.6458]
[1735662599092,2.93075,3412.1,3411.6,0.05]
[1735662600812,2.82125294,3412.3,3411.6,0.05]
[1735662600813,2.93084,3412.0,3411.6,0.05]
[1735662601692,2.82125294,3412.0,3411.6,0.05]
[1735662601873,2.93107,3411.8,3411.6,0.05]
[1735662602078,2.93109,3411.7,3411.6,0.05]
[1735662602374,5.75234294,3411.7,3411.6,0.05]
[1735662602575,2.82125294,3411.7,3411.6,0.05]
[1735662602812,2.82125294,3412.0,3411.6,0.05]
[1735662603108,5.97706479,3412.5,3411.7,0.6458]
[1735662603479,2.93041,3412.5,3411.7,0.6458]
[1735662603677,3.04665479,3412.6,3411.8,0.55]
[1735662603898,3.04665479,3412.6,3412.0,0.6458]
[1735662604618,9.40732869,3412.9,3412.0,0.6458]
[1735662604619,2.93016,3412.8,3412.0,0.6458]
[1735662606117,2.92999,3413.0,3412.0,0.6458]
[1735662606325,2.93009,3412.9,3412.0,0.6458]
[1735662606612,2.93015,3412.8,3412.0,0.6458]
[1735662606786,2.82125294,3412.6,3412.1,0.1613488]
[1735662607467,2.82125294,3412.9,3412.1,0.1613488]
[1735662607967,2.82125294,3412.9,3412.0,0.6458]
[1735662608604,2.93023,3412.7,3412.0,0.6458]
[1735662608823,2.93035,3412.6,3412.0,0.6458]
[1735662608995,2.93041,3412.5,3412.0,0.6458]
[1735662609320,2.82125294,3412.6,3412.0,0.6458]
[1735662609503,2.93054,3412.4,3412.0,0.6458]
[1735662610067,2.82125294,3412.6,3412.0,0.6458]
[1735662610266,2.93059,3412.3,3412.0,0.6458]
[1735662611283,2.93044,3412.5,3412.0,0.6458]
[1735662612514,2.93021,3412.8,3412.0,0.6458]
[1735662612682,2.93,3413.0,3412.0,3.57663]
[1735662613080,2.92973,3413.3,3412.3,0.6458]
[1735662613732,6.47723869,3413.5,3412.6,0.6458]
[1735662613733,3.65598575,3413.5,3412.6,0.6458]
[1735662613915,6.47723869,3413.5,3412.6,0.6458]
[1735662614234,2.92966,3413.4,3412.6,0.6458]
[1735662614794,2.82125294,3413.2,3412.6,0.6458]
[1735662614994,2.93,3413.0,3412.6,0.6458]
[1735662615304,5.75108294,3413.2,3412.6,0.6458]
[1735662615990,2.92991,3413.1,3412.6,0.6458]
[1735662616406,2.82125294,3413.2,3412.6,0.6458]
[1735662616607,0.7762,3413.3,3412.6,0.6458]
[1735662616608,2.92975,3413.3,3412.6,0.6458]
[1735662617235,5.75109294,3413.2,3412.6,0.6458]
[1735662619048,2.82125294,3413.2,3412.6,0.6458]
[1735662619261,2.92997,3413.0,3412.6,0.6458]
[1735662620260,2.92988,3413.1,3412.6,0.6458]
[1735662620460,2.92974,3413.3,3412.6,0.6458]
[1735662620940,2.92969,3413.4,3412.6,0.6458]
[1735662622204,2.92972,3413.3,3412.6,0.6458]
[1735662622403,2.82125294,3413.5,3412.6,0.6458]
[1735662622606,2.92974,3413.3,3412.6,0.6458]
[1735662623351,5.75083294,3413.5,3412.6,0.6458]
[1735662624389,2.92964,3413.4,3412.6,0.6458]
[1735662624680,2.92964,3413.4,3412.7,0.6458]
[1735662624987,2.9295,3413.6,3412.7,0.6458]
[1735662625660,2.82125294,3413.5,3412.7,0.6458]
[1735662628109,5.75081294,3413.5,3412.7,0.6458]
[1735662629461,2.92965,3413.4,3412.7,0.6458]
[1735662629787,2.82125294,3413.5,3412.7,0.6458]
[1735662630346,0.7725,3413.8,3412.7,0.6458]
[1735662630544,5.75116294,3413.1,3412.7,0.6458]
[1735662631669,2.82125294,3413.4,3412.7,0.6458]
[1735662631865,0.59602998,3413.7,3412.7,0.6458]
[1735662631866,2.92958,3413.5,3412.7,0.6458]
[1735662632071,5.75068294,3413.7,3412.7,0.6458]
[1735662632658,5.75068294,3413.7,3412.8,0.6458]
[1735662632883,2.92952,3413.6,3412.8,0.6458]
[1735662633595,2.82125294,3413.7,3412.8,0.6458]
[1735662633807,2.92956,3413.5,3412.8,0.6458]
[1735662634907,2.92987,3413.2,3412.8,0.6458]
[1735662635051,2.93012,3412.9,3412.5,0.6458]
[1735662635458,5.75118294,3413.1,3412.5,0.6458]
[1735662637463,2.92993,3413.1,3412.5,0.6458]
[1735662638304,2.93,3413.0,3412.5,0.6458]
[1735662638476,2.92987,3413.2,3412.5,0.6458]
[1735662639507,2.92991,3413.1,3412.5,0.6458]
[1735662640702,2.82125294,3413.4,3412.5,0.6458]
[1735662640887,5.75092294,3413.4,3412.5,0.6458]
[1735662641088,5.75092294,3413.4,3412.5,1.003444]
[1735662641606,2.9298,3413.2,3412.5,1.003444]
[1735662641791,2.82125294,3413.4,3412.5,0.6458]
[1735662642112,5.75091294,3413.4,3412.5,0.6458]
[1735662642864,2.92971,3413.3,3412.5,0.6458]
[1735662643065,2.92957,3413.5,3412.5,0.6458]
[1735662643781,2.92967,3413.4,3412.5,0.6458]
[1735662644107,2.92967,3413.4,3412.6,0.357634]
[1735662645035,0.7584,3413.6,3412.7,0.6458]
[1735662645036,2.92946,3413.6,3412.7,0.6458]
[1735662646106,2.92955,3413.5,3412.7,0.6458]
[1735662646311,2.92964,3413.4,3412.7,0.6458]
[1735662647508,2.82125294,3413.8,3412.7,0.6458]
[1735662647826,2.92981,3413.2,3412.7,0.6458]
[1735662647976,5.75112294,3413.2,3412.7,0.6458]
[1735662648180,2.92987,3413.2,3412.7,0.6458]
[1735662651928,3.57965294,3413.8,3412.7,0.6458]
[1735662652101,2.9295,3413.6,3412.7,0.6458]
[1735662652296,2.9295,3413.6,3412.9,0.6458]
[1735662652840,2.92932,3413.8,3412.9,0.6458]
[1735662653161,0.7584,3414.0,3412.9,0.6458]
[1735662653162,2.92938,3413.7,3412.9,0.6458]
[1735662654529,2.92945,3413.7,3412.9,0.6458]
[1735662655031,2.82125294,3413.8,3412.9,0.6458]
[1735662655733,2.82125294,3413.8,3413.0,0.16055208]
[1735662656532,2.92946,3413.6,3413.0,0.16055208]
[1735662656887,2.92938,3413.7,3413.0,0.16055208]
[1735662657088,2.82125294,3413.8,3413.0,0.16055208]
[1735662657089,2.92947,3413.6,3413.0,0.16055208]
[1735662660439,2.92956,3413.5,3412.9,0.6458]
[1735662660741,0.8125,3413.4,3412.9,0.6458]
[1735662660915,2.93003,3413.0,3412.6,1.86749658]
[1735662661319,2.93014,3412.8,3412.6,1.22169658]
[1735662661516,5.75107294,3413.2,3412.3,0.6458]
[1735662662043,3.63375294,3412.9,3412.3,0.6458]
[1735662662244,3.63375294,3412.9,3412.1,1.22169658]
[1735662662444,2.93066,3412.2,3412.0,1.86749658]
[1735662662665,2.93042,3412.5,3412.0,1.86749658]
[1735662663970,2.93042,3412.5,3412.0,0.6458]
[1735662665304,2.93058,3412.3,3412.0,0.6458]
[1735662665507,2.93058,3412.3,3411.8,0.6458]
[1735662667259,2.93023,3412.7,3411.8,0.6458]
[1735662667461,2.93051,3412.4,3411.8,0.6458]
[1735662667656,2.93023,3412.7,3411.8,0.6458]
[1735662667861,2.93058,3412.3,3411.8,0.6458]
[1735662668386,2.93091,3411.9,3411.8,0.6458]
[1735662668665,2.93077,3412.1,3411.6,0.05]
[1735662668824,2.93102,3411.8,3411.6,0.05]
[1735662669362,2.93109,3411.7,3411.6,0.05]
[1735662670049,0.8125,3411.9,3411.6,0.05]
[1735662670255,2.93109,3411.7,3411.6,0.05]
[1735662670451,3.74345,3411.9,3411.6,0.05]
[1735662670825,2.93107,3411.8,3411.6,0.05]
[1735662671246,2.82125294,3411.7,3411.6,0.05]
[1735662671840,5.75234294,3411.7,3411.6,0.05]
[1735662672036,2.82125294,3411.7,3411.6,0.05]
[1735662673681,2.82125294,3412.0,3411.6,0.6958]
[1735662673883,2.93068,3412.2,3411.6,0.6958]
[1735662674683,2.93077,3412.1,3411.6,0.6958]
[1735662675547,5.75213294,3412.0,3411.6,0.6958]
[1735662675755,3.63375294,3412.0,3411.6,0.05]
[1735662676547,2.93096,3411.9,3411.6,0.05]
[1735662677481,3.63375294,3412.0,3411.6,0.05]
[1735662677802,5.75234294,3411.7,3411.6,0.05]
[1735662677998,2.93174,3411.0,3410.6,0.55]
[1735662678240,2.93117,3411.6,3410.5,1.22169658]
[1735662678241,2.82125294,3410.7,3410.5,1.22169658]
[1735662678498,2.82125294,3411.0,3410.5,1.22169658]
[1735662679116,2.82125294,3411.0,3410.4,0.6458]
[1735662679453,2.93118,3411.6,3410.4,0.6458]
[1735662679669,5.75243294,3411.6,3410.4,0.6458]
[1735662680075,2.93118,3411.6,3410.4,2.93216]
[1735662680257,2.82125294,3411.2,3410.8,0.6458]
[1735662681328,2.82125294,3411.5,3410.8,0.6458]
[1735662681877,2.82125294,3411.2,3410.8,0.6458]
[1735662682791,5.75278294,3411.2,3410.8,0.6458]
[1735662683197,2.82125294,3411.2,3410.8,0.6458]
[1735662684105,2.93111,3411.7,3410.8,0.6458]
[1735662684421,5.75236294,3411.7,3410.8,0.6458]
[1735662684636,2.93126,3411.5,3410.8,0.6458]
[1735662685393,2.82125294,3411.7,3410.8,0.6458]
[1735662686198,5.75261294,3411.4,3410.8,0.6458]
[1735662686735,2.93148,3411.3,3410.8,0.6458]
[1735662688933,2.82125294,3411.4,3410.8,0.6458]
[1735662689132,2.93129,3411.5,3410.8,0.6458]
[1735662691419,2.93142,3411.4,3410.8,0.6458]
[1735662691616,0.293142,3411.3,3410.8,0.6458]
[1735662691938,0.293142,3411.3,3409.4,2.54977694]
[1735662691939,2.93212,3410.5,3410.0,0.6458]
[1735662692099,5.75337294,3410.5,3410.0,0.6458]
[1735662692299,2.82125294,3410.5,3410.0,0.6458]
[1735662692501,2.93222,3410.4,3410.0,0.6458]
[1735662692702,2.9323,3410.3,3410.0,0.6458]
[1735662692931,2.82125294,3410.2,3409.7,0.6458]
[1735662693537,2.93215,3410.5,3409.7,0.6458]
[1735662693711,5.75340294,3410.5,3409.7,0.6458]
[1735662694355,2.93226,3410.4,3409.7,0.6458]
[1735662694743,2.82125294,3410.5,3409.7,0.6458]
[1735662694900,5.75345294,3410.5,3409.7,0.6458]
[1735662695106,2.82125294,3410.5,3409.7,0.6458]
[1735662695301,2.9323,3410.3,3409.7,0.6458]
[1735662695751,5.75338294,3410.5,3409.7,0.6458]
[1735662696130,5.75338294,3410.5,3409.6,1.2]
[1735662696131,3.59265294,3410.2,3409.6,1.2]
[1735662696531,6.52502294,3410.2,3409.6,1.2]
[1735662696744,0.7714,3410.2,3409.0,0.6458]
[1735662696976,0.7714,3410.2,3408.8,0.46730152]
[1735662696977,0.7714,3409.5,3408.8,0.46730152]
[1735662697108,2.82125294,3409.4,3408.8,0.46730152]
[1735662697608,2.82125294,3409.4,3408.3,0.6458]
[1735662697609,2.93328,3409.2,3408.3,0.6458]
[1735662699360,0.7714,3409.5,3409.1,0.59044106]
[1735662699579,3.59265294,3409.5,3408.3,0.6458]
[1735662699760,2.93337,3409.1,3408.3,0.6458]
[1735662700163,2.93341,3409.0,3408.5,0.6025581]
[1735662700353,2.9335,3408.9,3408.5,0.6025581]
[1735662700943,2.93306,3409.4,3408.5,0.6025581]
[1735662701144,2.9336,3408.8,3408.3,0.6458]
[1735662701464,2.93363,3408.8,3408.6,0.03012364]
[1735662701669,0.8085,3409.1,3407.5,2.9347]
[1735662701670,2.93368,3408.7,3407.6,4.1958]
[1735662701980,2.93409,3408.3,3407.7,0.04146851]
[1735662702871,2.93423,3408.1,3407.7,0.04146851]
[1735662703181,2.93423,3408.1,3407.6,0.6458]
[1735662703376,2.93423,3408.1,3407.8,0.02997927]
[1735662703686,2.93423,3408.1,3407.6,0.6458]
[1735662703847,2.93403,3408.3,3407.6,0.6458]
[1735662704042,1.390248,3408.8,3407.7,0.0323172]
[1735662704249,2.93379,3408.6,3407.7,0.0323172]
[1735662704445,0.8085,3408.8,3407.9,0.6458]
[1735662704645,0.8085,3409.6,3408.2,0.55]
[1735662704982,2.93312,3409.4,3408.3,0.6782827]
[1735662705187,2.93319,3409.3,3408.3,0.6782827]
[1735662705367,2.9333,3409.2,3408.3,0.6782827]
[1735662705781,2.93337,3409.1,3408.3,0.6782827]
[1735662706149,2.93318,3409.3,3408.3,0.6782827]
[1735662706349,2.93318,3409.3,3408.3,1.15331252]
[1735662707110,6.74119,3409.9,3408.5,0.6458]
[1735662707283,2.82125294,3409.0,3408.5,0.6458]
[1735662707584,3.74216,3408.7,3408.6,0.03007386]
[1735662707785,2.93427,3408.0,3407.1,0.6458]
[1735662707975,2.93427,3408.0,3407.2,0.18674966]
[1735662708175,2.82125294,3408.1,3407.2,0.43362872]
[1735662708348,2.93473,3407.5,3407.2,0.24687906]
[1735662708871,2.93473,3407.5,3407.1,0.6458]
[1735662709592,2.93455,3407.7,3407.1,0.6458]
[1735662710902,2.93634,3405.6,3405.5,4e-07]
[1735662711093,4.53069396,3405.4,3405.3,1.83254487]
[1735662711389,3.70891,3405.4,3405.3,1.83254487]
[1735662712365,6.70891,3405.4,3405.3,4.87e-06]
[1735662712663,0.55,3405.2,3405.0,1.58581461]
[1735662712869,8.75802294,3405.1,3405.0,1.58581461]
[1735662713069,5.75802294,3405.1,3403.7,0.6458]
[1735662713279,2.82125294,3405.1,3403.7,0.6458]
[1735662713472,2.93725,3404.6,3403.7,0.6458]
[1735662713800,0.7724,3405.4,3403.8,2.82125294]
[1735662714009,0.7724,3405.4,3404.5,0.03445176]
[1735662714010,2.93688,3405.0,3404.5,0.03445176]
[1735662714612,2.93696,3404.9,3404.5,0.03445176]
[1735662714817,2.93696,3404.9,3404.4,0.90259725]
[1735662714997,2.93667,3405.3,3404.6,0.03957807]
[1735662715172,0.370907,3405.2,3404.4,0.90259725]
[1735662715374,2.93667,3405.3,3404.4,0.90259725]
[1735662715593,2.93669,3405.2,3404.4,0.90259725]
[1735662715802,0.7724,3405.4,3404.5,0.03961953]
[1735662716003,0.7724,3405.4,3404.4,0.90259725]
[1735662716177,3.70891,3405.4,3404.4,0.90259725]
[1735662716511,3.81745402,3405.3,3404.4,0.90259725]
[1735662716857,3.81745402,3405.3,3404.4,3.83996725]
[1735662717053,3.38885515,3405.3,3404.4,3.83996725]
[1735662717260,3.38885515,3405.7,3404.5,0.6458]
[1735662717517,2.93635,3405.6,3404.5,0.6458]
[1735662717864,3.38885515,3405.7,3404.5,0.6458]
[1735662718089,6.32512515,3405.7,3404.5,3.583]
[1735662718295,3.38885515,3405.3,3404.4,0.90259725]
[1735662718496,2.93728,3404.5,3404.4,0.90259725]
[1735662718769,4.28560082,3404.5,3404.4,0.90259725]
[1735662719905,2.93728,3404.5,3404.4,0.90259725]
[1735662720278,3.48728,3404.5,3404.4,0.90259725]
[1735662720479,3.7608,3404.4,3403.2,0.1700693]
[1735662720714,2.93942,3402.1,3401.7,1e-05]
[1735662720879,3.38885515,3401.8,3400.5,0.902598]
[1735662721081,3.38885515,3401.3,3400.2,0.7567]
[1735662721408,3.38885515,3400.5,3400.0,2.97555139]
[1735662721880,2.94076,3400.5,3400.0,2.97555139]
[1735662722091,3.38885515,3400.5,3400.0,2.97555139]
[1735662722423,6.32997515,3400.1,3398.9,1.96763175]
[1735662722723,7.09077515,3400.1,3398.9,1.96763175]
[1735662723218,3.0,3400.0,3398.9,1.21093175]
[1735662723375,0.7608,3400.1,3398.9,1.21093175]
[1735662723577,3.38885515,3400.2,3398.9,1.21093175]
[1735662723806,3.38885515,3400.2,3399.0,0.37840294]
[1735662724003,3.38885515,3400.2,3399.0,3.3599059]
[1735662724207,0.7608,3400.6,3399.0,0.40783207]
[1735662724519,0.7608,3400.6,3399.0,0.02942913]
[1735662724520,3.85632311,3400.0,3399.0,0.02942913]
[1735662724820,2.94164,3399.5,3398.5,8.827424]
[1735662725123,0.55,3399.4,3399.1,0.02951671]
[1735662725321,0.55,3399.2,3398.5,8.827424]
[1735662725482,3.85632311,3398.6,3398.5,8.827424]
[1735662725684,6.85632311,3398.6,3398.5,8.827424]
[1735662725922,7.40632311,3398.6,3398.5,8.85620164]
[1735662726085,6.85632311,3398.6,3398.5,8.827424]
[1735662726285,7.40632311,3398.6,3398.5,8.85620164]
[1735662727319,7.40632311,3398.6,3398.2,0.91814549]
[1735662727320,5.94264,3398.3,3398.2,0.91814549]
[1735662727650,3.85632311,3397.5,3396.5,0.1700693]
[1735662727956,3.85632311,3398.5,3396.5,0.1700693]
[1735662728255,3.0,3398.4,3396.5,0.1700693]
[1735662728848,0.58692809,3399.0,3396.8,0.55]
[1735662728980,0.7608,3399.3,3398.2,2.94265]
[1735662729340,3.85632311,3399.1,3396.9,0.57831068]
[1735662729549,2.94221,3398.8,3396.9,2.94383]
[1735662729696,2.94246,3398.6,3397.0,2.94375]
[1735662729900,3.55,3398.5,3396.6,0.7567]
[1735662730156,3.85632311,3398.6,3395.9,0.58456715]
[1735662730157,0.55,3397.9,3395.9,0.58456715]
[1735662730332,2.94336,3397.5,3396.0,0.777]
[1735662730490,1.1566818,3397.8,3396.0,0.777]
[1735662730691,0.7715,3397.8,3396.4,2.94428]
[1735662730887,3.0,3398.0,3396.0,0.777]
[1735662731191,3.71409,3398.4,3396.8,3.72092]
[1735662731646,2.94268,3398.3,3396.8,3.72092]
[1735662731930,0.7715,3398.4,3396.9,2.94383]
[1735662732152,1.23428231,3398.4,3396.9,3.315922]
[1735662732297,4.17686231,3398.4,3396.9,3.315922]
[1735662732911,0.7715,3399.0,3397.0,0.55]
[1735662733228,0.7715,3399.0,3397.1,2.94363]
[1735662733469,2.94274,3398.2,3396.8,3.7209]
[1735662733637,0.294274,3398.1,3396.9,0.37209]
[1735662733941,2.94282,3398.1,3396.8,0.777]
[1735662734149,5.94247,3398.5,3396.8,3.72092]
[1735662734285,3.7715,3399.0,3396.9,0.02939574]
[1735662734489,2.94266,3398.3,3396.9,0.02939574]
[1735662734691,0.55,3398.6,3396.9,0.02939574]
[1735662734943,3.0,3398.5,3397.0,0.37503457]
[1735662735146,2.94282,3398.1,3397.0,0.37503457]
[1735662735351,3.0,3398.5,3397.1,2.97288879]
[1735662735552,2.94257,3398.4,3397.1,0.02921879]
[1735662736187,2.94291,3398.0,3397.1,0.02921879]
[1735662736431,2.94219,3398.9,3397.1,0.02921879]
[1735662736432,0.294291,3397.9,3397.1,0.02921879]
[1735662736647,3.85632311,3397.9,3397.1,0.02921879]
[1735662736858,3.0,3397.8,3397.0,0.005]
[1735662737063,3.0,3397.1,3396.5,0.1700693]
[1735662737261,5.94412,3396.6,3396.5,0.1700693]
[1735662737475,9.80044311,3396.6,3396.5,0.1700693]
[1735662737609,5.94412,3396.6,3396.5,0.1700693]
[1735662738268,3.0,3396.5,3394.3,0.59747571]
[1735662738500,0.7715,3395.0,3394.3,0.00294]
[1735662738614,3.0,3395.3,3394.3,0.00294]
[1735662738615,2.94531,3395.3,3394.4,0.02860279]
[1735662738966,0.7715,3395.6,3394.3,0.77994]
[1735662739477,0.7715,3396.2,3394.3,0.77994]
[1735662739766,3.71536,3396.9,3395.0,3.0]
[1735662739973,0.7715,3397.5,3395.2,2.94533]
[1735662740177,0.7715,3397.5,3395.3,6.80156311]
[1735662740332,2.94387,3396.9,3395.5,2.945]
[1735662740686,2.94388,3396.9,3395.6,0.03708223]
[1735662740829,2.94369,3397.1,3395.6,0.03708223]
[1735662741007,2.94354,3397.3,3395.7,2.94486]
[1735662741208,3.315114,3397.2,3395.8,0.294486]
[1735662741459,0.55,3397.4,3395.8,0.33519309]
[1735662741618,0.55,3397.4,3395.8,0.04070709]
[1735662741619,2.9442,3396.5,3395.8,0.04070709]
[1735662741822,3.85632311,3397.1,3395.8,0.04070709]
[1735662742185,2.94392,3396.9,3395.8,0.04070709]
[1735662742351,0.7715,3397.5,3395.7,2.94481]
[1735662742556,2.94369,3397.1,3395.7,2.94481]
[1735662742762,2.94378,3397.0,3395.8,0.33518809]
[1735662743049,3.7715,3397.5,3395.9,0.777]
[1735662743050,0.7715,3397.5,3395.9,0.777]
[1735662743247,2.94305,3397.9,3395.9,0.81766542]
[1735662743408,0.7715,3398.2,3395.9,0.81766542]
[1735662743630,3.85632311,3399.1,3396.1,3.55]
[1735662743834,2.94249,3398.5,3397.1,2.94361]
[1735662744193,0.7715,3398.8,3396.9,3.72085]
[1735662744356,2.94247,3398.5,3397.2,0.03476109]
[1735662744535,3.0,3398.4,3397.2,0.03476109]
[1735662744912,2.94324,3397.7,3396.9,0.777]
[1735662745095,2.94299,3397.9,3396.9,0.777]
[1735662745295,2.94299,3397.9,3397.0,0.03439166]
[1735662745457,2.94256,3398.4,3396.9,0.777]
[1735662745634,2.94292,3398.0,3396.9,0.777]